[Event "World Junior U20 Girls 2018"]
[Site "Gebze"]
[Date "2018.09.10"]
[Round "6"]
[White "Esti, Kubra Selenay"]
[Black "Celik, Eda"]
[Result "0-1"]
[ECO "D00"]
[WhiteElo "1662"]
[BlackElo "1970"]
[Annotator "NA"]
[PlyCount "112"]
[EventDate "2018.09.05"]
[EventType "swiss"]
[EventCountry "TUR"]
[SourceTitle "playchess.com"]
[Source "ChessBase"]
[SourceQuality "1"]
[TimeControl "40/5400+30:1800+30"]

1. d4 {[%emt 0:00:30]} Nf6 {[%emt 0:00:30]} 2. Bf4 {[%emt 0:00:00]} d5 {[%emt 0:00:00]} 3. e3 {[%emt 0:00:00]} c5 {[%emt 0:01:00]} 4. c3 {[%emt 0:00:30]} Nc6 {[%emt 0:00:00]} 5. Nd2 {[%emt 0:00:30] D00: 1 d4 d5: Unusual lines} Bf5 {[%emt 0:09:00]} 6. Qb3 {[%emt 0:03:30]} (6. Ngf3 e6 7. Be2 Bd6 8. dxc5 Bxc5 9. Nd4 Bg6 10. Qa4 O-O 11. Nxc6 bxc6 12. Qxc6 Rc8 13. Qa4 Re8 14. O-O e5 {0-1 (57) Le,Q (2737)-Ding,L (2777) Riadh 2017}) 6... Qd7 {[%emt 0:00:30]} 7. Ngf3 {[%emt 0:07:30]} cxd4 {[%emt 0:31:30]} 8. Ne5 $146 {[%emt 0:16:30]} ({Predecessor:} 8. exd4 a6 9. Nh4 Bg6 10. Be2 e6 11. O-O Be7 12. Nxg6 hxg6 {0-1 (43) Pinero Fernandez,X (2218)-Samant,A (2191) Barcelona 2018}) 8... Nxe5 {[%emt 0:02:30]} 9. Bxe5 {[%emt 0:00:30]} a6 {[%emt 0:00:30]} 10. Bxd4 {[%emt 0:11:30]} e6 {[%emt 0:08:30]} 11. c4 {[%emt 0:07:30]} Ne4 {[%emt 0:06:30]} 12. Nxe4 {[%emt 0:09:30]} Bxe4 {[%emt 0:00:30]} 13. f3 {[%emt 0:05:30]} Bg6 {[%emt 0:06:30]} 14. cxd5 {[%emt 0:07:30]} Qxd5 {[%emt 0:09:30]} 15. Qxd5 {[%emt 0:10:01]} exd5 {[%emt 0:00:00]} 16. Rc1 {[%emt 0:04:08]} Kd7 {[%emt 0:02:21]} 17. Kd2 {[%emt 0:06:28]} Bb4+ {[%emt 0:00:59]} 18. Bc3 {[%emt 0:00:27]} Bxc3+ {[%emt 0:00:34]} 19. Rxc3 {[%emt 0:00:26]} Rac8 {[%emt 0:01:48]} 20. Bd3 {[%emt 0:01:01]} Rxc3 {[%emt 0:04:28]} 21. Kxc3 {[%emt 0:00:51]} Rc8+ {[%emt 0:00:57]} 22. Kd2 {[%emt 0:00:58]} Bxd3 {[%emt 0:03:23]} 23. Kxd3 {[%emt 0:00:02]} Kd6 {[%emt 0:03:45]} 24. Re1 {[%emt 0:02:01]} f5 {[%emt 0:02:32]} 25. Rd1 {[%emt 0:02:01]} Ke5 {[%emt 0:03:02]} 26. Re1 {[%emt 0:01:24]} b5 {[%emt 0:01:19]} 27. h3 {[%emt 0:01:35]} g5 {[%emt 0:00:38]} 28. g3 {[%emt 0:00:42]} Rc4 {[%emt 0:00:39]} 29. b3 {[%emt 0:00:49]} Rc7 {[%emt 0:00:17]} 30. f4+ {[%emt 0:00:33]} gxf4 {[%emt 0:00:44]} 31. exf4+ {[%emt 0:00:17]} Kd6 {[%emt 0:00:53]} 32. Re5 {[%emt 0:00:29]} Rg7 {[%emt 0:00:00]} 33. Re3 {[%emt 0:00:42]} Kc5 {[%emt 0:00:31]} 34. a3 {[%emt 0:00:19]} a5 {[%emt 0:00:22]} 35. h4 {[%emt 0:00:44]} b4 {[%emt 0:00:43]} 36. a4 {[%emt 0:00:29]} Rg6 {[%emt 0:00:29]} 37. Kd2 {[%emt 0:00:30]} h5 {[%emt 0:00:32]} 38. Kd3 {[%emt 0:00:19]} Rg8 {[%emt 0:00:27]} 39. Kd2 {[%emt 0:00:36]} Kd4 {[%emt 0:00:58]} 40. Rd3+ {[%emt 0:00:00]} Ke4 {[%emt 0:00:34]} 41. Re3+ {[%emt 0:01:38]} Kd4 {[%emt 0:30:30]} 42. Rd3+ {[%emt 0:00:00]} Kc5 {[%emt 0:00:00]} 43. Re3 {[%emt 0:06:00]} Rg7 {[%emt 0:00:00]} 44. Kd3 {[%emt 0:01:30]} Rg6 {[%emt 0:00:00]} 45. Kd2 {[%emt 0:01:30]} Kd6 {[%emt 0:00:00]} 46. Rf3 $19 {[%emt 0:15:02]} (46. Kc2 $11 {and White has nothing to worry.}) 46... d4 {[%emt 0:00:00]} 47. Rf1 {[%emt 0:04:40]} Rxg3 {[%emt 0:00:00]} 48. Re1 {[%emt 0:00:12]} Rxb3 {[%emt 0:00:00]} 49. Re5 {[%emt 0:00:13]} Rh3 {[%emt 0:00:00]} 50. Rxa5 {[%emt 0:02:57]} Rxh4 {[%emt 0:00:00]} 51. Rxf5 {[%emt 0:00:32]} Rh1 {[%emt 0:00:00]} 52. Rb5 {[%emt 0:01:18]} h4 {[%emt 0:00:00]} 53. Ke2 {[%emt 0:01:25]} d3+ {[%emt 0:00:00]} 54. Kxd3 {[%emt 0:00:57]} h3 {[%emt 0:00:11]} 55. Rh5 {[%emt 0:00:36]} h2 {[%emt 0:00:30]} 56. Rh6+ {[%emt 0:00:00]} Ke7 {[%emt 0:00:32]} 0-1

[Event "World Junior U20 Girls 2018"]
[Site "Gebze"]
[Date "2018.09.10"]
[Round "6"]
[White "Anandpara Jayendra Saloni"]
[Black "Nemcova, Karin"]
[Result "0-1"]
[ECO "A41"]
[WhiteElo "1326"]
[BlackElo "1990"]
[Annotator "NA"]
[PlyCount "90"]
[EventDate "2018.09.05"]
[EventType "swiss"]
[EventCountry "TUR"]
[SourceTitle "playchess.com"]
[Source "ChessBase"]
[SourceQuality "1"]
[TimeControl "40/5400+30:1800+30"]

1. d4 {[%emt 0:00:30]} g6 {[%emt 0:00:30]} 2. Bf4 {[%emt 0:00:00]} Bg7 {[%emt 0:00:30]} 3. e3 {[%emt 0:00:00]} d6 {[%emt 0:00:30]} 4. h3 {[%emt 0:00:00]} Nd7 {[%emt 0:00:00]} 5. Nf3 {[%emt 0:00:00]} e5 {[%emt 0:00:00]} 6. Bh2 {[%emt 0:00:30]} Ne7 {[%emt 0:00:00]} 7. Be2 {[%emt 0:00:30] A41: Moderne Verteidigung gegen 1.d4 (mit oder ohne späterem e2-e4 und Sf6)} O-O {[%emt 0:00:00]} 8. Nbd2 {[%emt 0:02:30]} Nf5 {[%emt 0:00:30]} 9. c3 {[%emt 0:02:30]} Qe7 {[%emt 0:01:30]} 10. g4 $146 {[%emt 0:07:30]} ({Vorgänger:} 10. dxe5 dxe5 11. Qc2 b6 12. O-O Bb7 13. Ne4 Nd6 14. Nxd6 cxd6 {0-1 (54) Sergeev,V (2526)-Laznicka,V (2701) Czechia 2012}) 10... Nh4 {[%emt 0:01:30]} 11. Nxh4 {[%emt 0:01:30]} Qxh4 {[%emt 0:00:30]} 12. Bg3 {[%emt 0:00:30]} Qe7 {[%emt 0:01:30]} 13. Qc2 {[%emt 0:12:30]} Nb6 {[%emt 0:08:30]} 14. Bf3 {[%emt 0:07:30]} (14. dxe5 $11 dxe5 15. Nf3) 14... exd4 {[%emt 0:07:30]} 15. cxd4 {[%emt 0:00:30]} Bxd4 {[%emt 0:01:30]} 16. Kf1 {[%emt 0:01:30]} Bg7 {[%emt 0:01:30]} 17. Rc1 {[%emt 0:01:30]} c6 {[%emt 0:04:30]} 18. h4 {[%emt 0:06:30]} d5 {[%emt 0:09:30]} 19. h5 {[%emt 0:06:30]} Qb4 {[%emt 0:02:30]} 20. Rb1 {[%emt 0:10:30]} Bxg4 {[%emt 0:00:30]} 21. Bxg4 {[%emt 0:01:30]} Qxg4 {[%emt 0:00:30]} 22. h6 {[%emt 0:00:00]} Bh8 {[%emt 0:01:30]} 23. b3 {[%emt 0:05:00]} Rad8 $19 {[%emt 0:06:30]} 24. Rh4 {[%emt 0:05:30]} Qe6 {[%emt 0:05:30]} 25. Nf3 {[%emt 0:01:30]} f5 {[%emt 0:01:30]} 26. Rd1 {[%emt 0:06:30]} Bf6 {[%emt 0:06:30]} 27. Rh2 {[%emt 0:00:30]} Qe4 {[%emt 0:00:30]} 28. Qe2 {[%emt 0:01:26]} Rfe8 {[%emt 0:03:30]} 29. Bh4 {[%emt 0:01:08]} Qe7 {[%emt 0:01:30]} 30. Bxf6 {[%emt 0:03:29]} Qxf6 {[%emt 0:00:30]} 31. Qd2 {[%emt 0:01:17]} Re4 {[%emt 0:01:30]} 32. Rg2 {[%emt 0:06:51]} Nd7 {[%emt 0:07:30]} 33. Ng5 {[%emt 0:00:18]} Rh4 {[%emt 0:01:30]} 34. Nf3 {[%emt 0:00:10]} Rxh6 {[%emt 0:02:30]} 35. Qd4 {[%emt 0:00:50]} Rh1+ {[%emt 0:01:30]} 36. Rg1 {[%emt 0:01:44]} Qxd4 {[%emt 0:00:30]} 37. Nxd4 {[%emt 0:02:06]} Rxg1+ {[%emt 0:00:30]} 38. Kxg1 {[%emt 0:00:00]} Re8 {[%emt 0:00:30]} 39. Kg2 {[%emt 0:01:31]} Kg7 {[%emt 0:00:00]} 40. Nf3 {[%emt 0:00:53]} Ne5 {[%emt 0:00:00]} 41. Nxe5 {[%emt 0:01:17]} Rxe5 {[%emt 0:01:30]} 42. Kf3 {[%emt 0:00:30]} g5 {[%emt 0:00:30]} 43. Rg1 {[%emt 0:00:30]} Kf6 {[%emt 0:01:30]} 44. Rh1 {[%emt 0:01:30]} Kg6 {[%emt 0:00:30]} 45. a4 {[%emt 0:00:30]} h5 {[%emt 0:00:00]} 0-1

[Event "World Junior U20 Girls 2018"]
[Site "Gebze"]
[Date "2018.09.12"]
[Round "8"]
[White "Tsolakidou, Stavroula"]
[Black "Kubicka, Anna"]
[Result "1/2-1/2"]
[ECO "B13"]
[WhiteElo "2393"]
[BlackElo "2204"]
[Annotator "NA"]
[PlyCount "70"]
[EventDate "2018.09.05"]
[EventType "swiss"]
[EventCountry "TUR"]
[SourceTitle "playchess.com"]
[Source "ChessBase"]
[SourceQuality "1"]
[TimeControl "40/5400+30:1800+30"]

1. e4 {[%emt 0:00:30]} c6 {[%emt 0:00:30]} 2. d4 {[%emt 0:00:30]} d5 {[%emt 0:00:00]} 3. exd5 {[%emt 0:00:30]} cxd5 {[%emt 0:00:00]} 4. Bd3 {[%emt 0:00:00]} Nc6 {[%emt 0:00:30]} 5. c3 {[%emt 0:00:00]} Qc7 {[%emt 0:01:30]} 6. Na3 {[%emt 0:01:30]} a6 {[%emt 0:02:30]} 7. Nc2 {[%emt 0:00:30]} Nf6 {[%emt 0:04:30]} 8. h3 {[%emt 0:00:30]} g6 {[%emt 0:03:30]} 9. Ne2 {[%emt 0:02:30]} Bf5 {[%emt 0:04:30]} 10. Bxf5 {[%emt 0:05:30]} gxf5 {[%emt 0:00:30]} 11. Bg5 {[%emt 0:00:30]} Ne4 {[%emt 0:03:30]} 12. Bf4 {[%emt 0:00:00]} Qd7 {[%emt 0:01:30]} 13. f3 {[%emt 0:02:00]} Nf6 {[%emt 0:02:30]} 14. g4 {[%emt 0:00:30]} Bg7 {[%emt 0:24:30]} 15. Qd3 {[%emt 0:00:30]} fxg4 {[%emt 0:01:30]} 16. hxg4 {[%emt 0:00:30]} h5 {[%emt 0:03:30]} 17. g5 {[%emt 0:08:30]} Ng8 {[%emt 0:00:30]} 18. Ng3 {[%emt 0:01:30]} e5 {[%emt 0:02:30]} 19. dxe5 {[%emt 0:03:30]} Bxe5 {[%emt 0:00:30]} 20. Bxe5 {[%emt 0:06:30]} Nxe5 {[%emt 0:00:30]} 21. Qe3 {[%emt 0:00:00]} O-O-O {[%emt 0:01:30]} 22. O-O-O {[%emt 0:00:00]} Nc4 {[%emt 0:03:30]} 23. Qf4 {[%emt 0:03:30]} Ne7 {[%emt 0:02:30]} 24. Nxh5 {[%emt 0:03:30]} Ng6 {[%emt 0:01:30]} 25. Qf6 {[%emt 0:03:30]} Rhe8 {[%emt 0:07:30]} 26. Rh2 {[%emt 0:05:30]} Re6 {[%emt 0:06:30]} 27. Qf5 {[%emt 0:02:30]} Nxb2 {[%emt 0:02:43]} 28. Nf6 {[%emt 0:02:30]} Qc7 {[%emt 0:03:30]} 29. Rdd2 {[%emt 0:32:22]} Qxc3 {[%emt 0:07:55]} 30. Nxd5 {[%emt 0:00:33]} Rxd5 {[%emt 0:01:09]} 31. Rxd5 {[%emt 0:00:05]} Nc4 {[%emt 0:00:31]} 32. Kd1 {[%emt 0:02:28]} Nb2+ {[%emt 0:06:57]} 33. Kc1 {[%emt 0:00:04]} Nc4 {[%emt 0:00:09]} 34. Kd1 {[%emt 0:00:04]} Nb2+ {[%emt 0:01:27]} 35. Kc1 {[%emt 0:00:30]} Nc4 {[%emt 0:00:08]} 1/2-1/2

[Event "World Junior U20 Girls 2018"]
[Site "Gebze"]
[Date "2018.09.12"]
[Round "8"]
[White "Tokhirjonova, Gulrukhbegim"]
[Black "Gorti, Akshita"]
[Result "1-0"]
[ECO "C07"]
[WhiteElo "2369"]
[BlackElo "2315"]
[Annotator "NA"]
[PlyCount "131"]
[EventDate "2018.09.05"]
[EventType "swiss"]
[EventCountry "TUR"]
[SourceTitle "playchess.com"]
[Source "ChessBase"]
[SourceQuality "1"]
[TimeControl "40/5400+30:1800+30"]

1. e4 {[%emt 0:01:30]} e6 {[%emt 0:00:30]} 2. d4 {[%emt 0:00:30]} d5 {[%emt 0:00:00]} 3. Nd2 {[%emt 0:00:30]} c5 {[%emt 0:00:00]} 4. Ngf3 {[%emt 0:00:30]} cxd4 {[%emt 0:02:30]} 5. Nxd4 {[%emt 0:01:30]} Nf6 {[%emt 0:00:30]} 6. exd5 {[%emt 0:01:30]} Nxd5 {[%emt 0:03:30]} 7. N2f3 {[%emt 0:00:30] C07: French Tarrasch: 3...c5, 4 Ngf3 and 4 exd5 Qxd5} Bb4+ {[%emt 0:03:30]} 8. Bd2 {[%emt 0:03:30]} Bxd2+ {[%emt 0:08:30]} (8... O-O 9. c3 Be7 10. Bd3 b6 11. O-O Bb7 12. Qe2 Nc6 13. Rad1 Nxd4 14. Nxd4 Bf6 {0-1 (38) Gao,R (2561)-Yu,Y (2759) Tianjin 2018}) 9. Qxd2 {[%emt 0:01:30]} O-O {[%emt 0:02:30]} 10. Bc4 {[%emt 0:10:30]} b6 {[%emt 0:08:30]} 11. O-O {[%emt 0:02:30]} Bb7 {[%emt 0:00:30]} 12. Rfe1 {[%emt 0:02:30]} Qf6 {[%emt 0:11:30]} 13. Qg5 $146 {[%emt 0:09:30]} ({Predecessor:} 13. Ng5 Rc8 14. Ne4 Qe7 15. Bxd5 Bxd5 {0-1 (27) Vazquez,G (2438)-Shetty,A (2331) Chicago 2015}) 13... Nd7 {[%emt 0:03:30]} 14. Bf1 {[%emt 0:02:30]} Qxg5 {[%emt 0:03:30]} 15. Nxg5 {[%emt 0:00:30]} N7f6 {[%emt 0:01:30]} 16. c4 {[%emt 0:02:30]} Ne7 {[%emt 0:06:30]} 17. Rad1 {[%emt 0:05:30]} Rfd8 {[%emt 0:04:30]} 18. Ngf3 {[%emt 0:11:30]} Ng6 {[%emt 0:00:30]} 19. g3 {[%emt 0:03:30]} Rd7 {[%emt 0:11:30]} 20. Be2 {[%emt 0:01:30]} Rad8 {[%emt 0:02:30]} 21. Nb5 {[%emt 0:03:30]} a6 {[%emt 0:03:30]} 22. Nc3 {[%emt 0:00:30]} Bc6 {[%emt 0:01:30]} 23. Rxd7 {[%emt 0:06:30]} Rxd7 {[%emt 0:00:30]} 24. Rd1 {[%emt 0:00:30]} Rxd1+ {[%emt 0:03:40]} 25. Bxd1 {[%emt 0:00:30]} Ne4 {[%emt 0:01:27]} 26. Nxe4 {[%emt 0:05:30]} Bxe4 {[%emt 0:00:02]} 27. Kf1 {[%emt 0:00:00]} Kf8 {[%emt 0:01:27]} 28. Ke1 {[%emt 0:03:00]} Ke7 {[%emt 0:01:15]} 29. Kd2 {[%emt 0:00:30]} f6 {[%emt 0:01:59]} 30. Kc3 {[%emt 0:00:00]} Kd6 {[%emt 0:00:06]} 31. Nd2 {[%emt 0:00:00]} Bb7 {[%emt 0:02:04]} 32. b4 {[%emt 0:01:30]} e5 {[%emt 0:03:31]} 33. Nb3 {[%emt 0:00:59]} Ne7 {[%emt 0:00:09]} 34. c5+ {[%emt 0:01:37]} Kc7 {[%emt 0:00:58]} 35. cxb6+ {[%emt 0:01:42]} Kxb6 {[%emt 0:00:03]} 36. a4 {[%emt 0:00:22]} Bc8 {[%emt 0:03:41]} 37. a5+ {[%emt 0:01:51]} Kc6 {[%emt 0:02:40]} 38. Nc5 {[%emt 0:00:57]} f5 {[%emt 0:01:02]} 39. Kc4 {[%emt 0:04:32]} Kd6 {[%emt 0:02:56]} 40. b5 {[%emt 0:00:00]} axb5+ {[%emt 0:00:46]} 41. Kxb5 {[%emt 0:06:30]} Nd5 {[%emt 0:03:14]} 42. Kc4 {[%emt 0:04:30]} Nc7 {[%emt 0:06:30]} 43. Be2 {[%emt 0:09:30]} Na6 {[%emt 0:02:49]} 44. Na4 {[%emt 0:00:30]} Nb8 {[%emt 0:05:43]} 45. Kc3 {[%emt 0:00:30]} Na6 {[%emt 0:06:33]} 46. h4 {[%emt 0:04:22]} Bb7 {[%emt 0:01:40]} 47. h5 {[%emt 0:01:39]} Nc7 {[%emt 0:02:23]} 48. Bd3 {[%emt 0:01:01]} Bc6 {[%emt 0:01:59]} 49. Kb3 {[%emt 0:03:57]} e4 {[%emt 0:00:27]} 50. Bc4 {[%emt 0:01:25]} Bb7 {[%emt 0:03:18]} 51. Kc3 {[%emt 0:00:46]} Bc6 {[%emt 0:00:57]} 52. Nb6 {[%emt 0:01:58]} Kc5 {[%emt 0:00:24]} 53. Nc8 {[%emt 0:00:26]} Bd7 {[%emt 0:00:37]} 54. Nb6 {[%emt 0:00:46]} Bc6 {[%emt 0:00:25]} 55. Bg8 {[%emt 0:02:21]} h6 {[%emt 0:00:37]} 56. Bc4 {[%emt 0:03:07]} Be8 {[%emt 0:00:18]} 57. Be2 {[%emt 0:00:34]} Bc6 {[%emt 0:00:25]} 58. Kd2 {[%emt 0:01:41]} Ne6 {[%emt 0:00:50]} 59. Ke3 {[%emt 0:01:12]} Nd4 {[%emt 0:00:24]} 60. Bd1 {[%emt 0:00:08]} Ne6 {[%emt 0:00:28]} 61. Nc8 {[%emt 0:00:58]} Kb5 {[%emt 0:00:37]} 62. Na7+ {[%emt 0:00:32]} Kc5 {[%emt 0:00:02]} 63. Nxc6 {[%emt 0:00:21]} Kxc6 $18 {[%emt 0:00:30]} 64. Ba4+ {[%emt 0:00:12]} Kd6 {[%emt 0:01:20]} 65. a6 {[%emt 0:00:09]} Nc7 {[%emt 0:00:09]} 66. a7 {[%emt 0:00:25]} 1-0

[Event "World Junior U20 Girls 2018"]
[Site "Gebze"]
[Date "2018.09.12"]
[Round "8"]
[White "Zhu, Jiner"]
[Black "Paramzina, Anastasya"]
[Result "0-1"]
[ECO "B90"]
[WhiteElo "2364"]
[BlackElo "2222"]
[Annotator "NA"]
[PlyCount "98"]
[EventDate "2018.09.05"]
[EventType "swiss"]
[EventCountry "TUR"]
[SourceTitle "playchess.com"]
[Source "ChessBase"]
[SourceQuality "1"]
[TimeControl "40/5400+30:1800+30"]

1. e4 {[%emt 0:00:30]} c5 {[%emt 0:01:30]} 2. Nf3 {[%emt 0:00:30]} d6 {[%emt 0:00:30]} 3. d4 {[%emt 0:00:30]} cxd4 {[%emt 0:00:00]} 4. Nxd4 {[%emt 0:00:00]} Nf6 {[%emt 0:00:00]} 5. Nc3 {[%emt 0:00:00]} a6 {[%emt 0:00:30]} 6. Be3 {[%emt 0:00:00]} e5 {[%emt 0:00:00]} 7. Nb3 {[%emt 0:00:00]} Be7 {[%emt 0:00:00]} 8. h3 {[%emt 0:00:00]} Be6 {[%emt 0:00:00]} 9. f4 {[%emt 0:00:00]} exf4 {[%emt 0:00:00]} 10. Bxf4 {[%emt 0:00:00]} O-O {[%emt 0:01:30]} 11. Qe2 {[%emt 0:00:00]} Nc6 {[%emt 0:00:30]} 12. O-O-O {[%emt 0:00:30]} Nd7 {[%emt 0:00:30]} 13. Kb1 {[%emt 0:02:30]} Bf6 {[%emt 0:00:00]} 14. Nd5 {[%emt 0:02:30]} Be5 {[%emt 0:04:00]} 15. Bxe5 {[%emt 0:00:30]} Ndxe5 {[%emt 0:01:30]} 16. g4 {[%emt 0:00:00]} b5 {[%emt 0:03:30]} 17. Qf2 {[%emt 0:06:00]} Rb8 {[%emt 0:06:30]} 18. Be2 {[%emt 0:05:30]} a5 {[%emt 0:01:30]} 19. Nd4 {[%emt 0:00:30]} Bxd5 {[%emt 0:04:30]} 20. exd5 {[%emt 0:00:30]} Nxd4 {[%emt 0:00:00]} 21. Rxd4 {[%emt 0:01:30]} b4 {[%emt 0:01:00]} 22. Bd3 {[%emt 0:02:30]} a4 {[%emt 0:02:30]} 23. Rf1 {[%emt 0:08:30]} Re8 {[%emt 0:15:30]} 24. h4 {[%emt 0:09:30]} Qb6 {[%emt 0:01:30]} 25. b3 {[%emt 0:17:30]} a3 {[%emt 0:04:30]} 26. h5 {[%emt 0:05:30]} Nf3 {[%emt 0:16:30]} 27. Re4 {[%emt 0:01:30]} Qxf2 {[%emt 0:03:30]} 28. Rxf2 {[%emt 0:00:00]} Rxe4 {[%emt 0:00:30]} 29. Bxe4 {[%emt 0:00:00]} Re8 {[%emt 0:01:30]} 30. Rxf3 {[%emt 0:00:30]} Rxe4 {[%emt 0:00:30]} 31. c3 {[%emt 0:00:00]} Rxg4 {[%emt 0:00:30]} 32. cxb4 {[%emt 0:00:00]} Rxb4 {[%emt 0:08:30]} 33. Kc2 {[%emt 0:02:30]} Rd4 {[%emt 0:11:57]} 34. Kc3 {[%emt 0:00:30]} Rxd5 {[%emt 0:00:30]} 35. b4 {[%emt 0:00:00]} Rxh5 {[%emt 0:01:29]} 36. Kc4 {[%emt 0:00:00]} Rh4+ {[%emt 0:06:10]} 37. Kb3 {[%emt 0:00:30]} g5 {[%emt 0:01:18]} 38. b5 {[%emt 0:00:00]} Re4 {[%emt 0:02:51]} 39. b6 {[%emt 0:01:00]} Re7 {[%emt 0:00:17]} 40. Rf5 {[%emt 0:00:00]} h6 {[%emt 0:00:00]} 41. Kxa3 {[%emt 0:01:00]} Rb7 {[%emt 0:02:58]} 42. Rb5 {[%emt 0:00:00]} f5 {[%emt 0:00:00]} 43. Kb4 {[%emt 0:09:00]} g4 {[%emt 0:07:00]} 44. Kc4 {[%emt 0:18:30]} g3 {[%emt 0:01:30]} 45. Rb2 {[%emt 0:00:30]} f4 {[%emt 0:02:30]} 46. Kd3 {[%emt 0:06:30]} f3 {[%emt 0:01:30]} 47. Rb1 {[%emt 0:00:30]} Re7 {[%emt 0:06:47]} 48. b7 {[%emt 0:03:30]} Rxb7 {[%emt 0:00:43]} 49. Rxb7 {[%emt 0:00:00]} g2 {[%emt 0:00:05]} 0-1

[Event "World Junior U20 Girls 2018"]
[Site "Gebze"]
[Date "2018.09.12"]
[Round "8"]
[White "Khomeriki, Nino"]
[Black "Maltsevskaya, Aleksandra"]
[Result "1/2-1/2"]
[ECO "D59"]
[WhiteElo "2313"]
[BlackElo "2234"]
[Annotator "NA"]
[PlyCount "51"]
[EventDate "2018.09.05"]
[EventType "swiss"]
[EventCountry "TUR"]
[SourceTitle "playchess.com"]
[Source "ChessBase"]
[SourceQuality "1"]
[TimeControl "40/5400+30:1800+30"]

1. d4 {[%emt 0:00:30]} Nf6 {[%emt 0:00:30]} 2. Nf3 {[%emt 0:00:00]} e6 {[%emt 0:00:00]} 3. c4 {[%emt 0:01:00]} d5 {[%emt 0:00:00]} 4. Nc3 {[%emt 0:00:30]} Be7 {[%emt 0:00:30]} 5. Bg5 {[%emt 0:03:30]} Nbd7 {[%emt 0:00:30]} 6. e3 {[%emt 0:00:30]} h6 {[%emt 0:00:30]} 7. Bh4 {[%emt 0:00:30]} O-O {[%emt 0:00:30]} 8. Bd3 {[%emt 0:00:00]} c5 {[%emt 0:01:30]} 9. O-O {[%emt 0:00:00]} b6 {[%emt 0:20:30]} 10. cxd5 {[%emt 0:21:30]} Nxd5 {[%emt 0:01:30]} 11. Bxe7 {[%emt 0:01:30]} Qxe7 {[%emt 0:04:30]} 12. Nxd5 {[%emt 0:01:30]} exd5 {[%emt 0:00:00]} 13. dxc5 {[%emt 0:07:30]} bxc5 {[%emt 0:00:00]} 14. Qa4 {[%emt 0:03:30]} Ne5 {[%emt 0:14:30]} 15. Nxe5 {[%emt 0:02:30]} Qxe5 {[%emt 0:00:30]} 16. Qc6 {[%emt 0:03:30]} Rb8 {[%emt 0:01:30]} 17. b3 {[%emt 0:01:30]} Qg5 {[%emt 0:15:30]} 18. h4 {[%emt 0:12:30]} Qxh4 {[%emt 0:03:30]} 19. Qxc5 {[%emt 0:00:30]} Rb6 {[%emt 0:19:35]} 20. Rac1 {[%emt 0:06:30]} Bb7 {[%emt 0:08:38]} 21. Rfd1 {[%emt 0:04:30]} Rf6 {[%emt 0:03:39]} 22. Rc2 {[%emt 0:07:30]} Qg4 {[%emt 0:01:50]} 23. Be2 {[%emt 0:09:19]} Qf5 {[%emt 0:00:04]} 24. Bd3 {[%emt 0:00:18]} Qg4 {[%emt 0:00:05]} 25. Be2 {[%emt 0:09:26]} Qf5 {[%emt 0:00:05]} 26. Bd3 {[%emt 0:00:17]} 1/2-1/2

[Event "World Junior U20 Girls 2018"]
[Site "Gebze"]
[Date "2018.09.12"]
[Round "8"]
[White "Potapova, Margarita"]
[Black "Dordzhieva, Dinara"]
[Result "1/2-1/2"]
[ECO "B23"]
[WhiteElo "2277"]
[BlackElo "2318"]
[Annotator "NA"]
[PlyCount "64"]
[EventDate "2018.09.05"]
[EventType "swiss"]
[EventCountry "TUR"]
[SourceTitle "playchess.com"]
[Source "ChessBase"]
[SourceQuality "1"]
[TimeControl "40/5400+30:1800+30"]

1. e4 {[%emt 0:00:30]} c5 {[%emt 0:00:30]} 2. Nc3 {[%emt 0:00:30]} Nc6 {[%emt 0:00:00]} 3. Bb5 {[%emt 0:00:30]} Nd4 {[%emt 0:02:00]} 4. Nf3 {[%emt 0:00:00]} Nxb5 {[%emt 0:00:30]} 5. Nxb5 {[%emt 0:00:00]} d6 {[%emt 0:00:30]} 6. d4 {[%emt 0:00:30]} Bd7 {[%emt 0:09:30]} 7. Nc3 {[%emt 0:01:30]} cxd4 {[%emt 0:00:30]} 8. Qxd4 {[%emt 0:00:30]} e5 {[%emt 0:01:30]} 9. Qd3 {[%emt 0:05:30]} h6 {[%emt 0:00:30]} 10. O-O {[%emt 0:03:30]} Nf6 {[%emt 0:00:30]} 11. Nd2 {[%emt 0:01:30]} Rc8 {[%emt 0:11:30]} 12. Nc4 {[%emt 0:08:30]} Be6 {[%emt 0:03:30]} 13. Ne3 {[%emt 0:00:30]} Be7 {[%emt 0:00:30]} 14. Ncd5 {[%emt 0:10:30]} Nxd5 {[%emt 0:15:30]} 15. Nxd5 {[%emt 0:00:30]} Bxd5 {[%emt 0:00:30]} 16. Qxd5 {[%emt 0:03:30]} Qd7 {[%emt 0:00:00]} 17. c3 {[%emt 0:14:30]} Qc6 {[%emt 0:02:00]} 18. Rd1 {[%emt 0:00:30]} O-O {[%emt 0:02:30]} 19. Be3 {[%emt 0:00:30]} a6 {[%emt 0:04:30]} 20. a4 {[%emt 0:05:30]} Qxd5 {[%emt 0:03:30]} 21. Rxd5 {[%emt 0:00:30]} Rc4 {[%emt 0:00:00]} 22. f3 {[%emt 0:00:30]} f5 {[%emt 0:00:00]} 23. exf5 {[%emt 0:00:30]} Rxf5 {[%emt 0:00:30]} 24. a5 {[%emt 0:03:30]} Kf7 {[%emt 0:01:30]} 25. Bb6 {[%emt 0:01:30]} Ke6 {[%emt 0:00:30]} 26. Rad1 {[%emt 0:00:30]} e4 {[%emt 0:06:30]} 27. Rxf5 {[%emt 0:16:30]} Kxf5 {[%emt 0:00:00]} 28. Bd4 {[%emt 0:02:46]} exf3 {[%emt 0:02:00]} 29. Rf1 {[%emt 0:00:18]} g6 {[%emt 0:03:30]} 30. Rxf3+ {[%emt 0:00:43]} Ke6 {[%emt 0:00:00]} 31. Rg3 {[%emt 0:01:10]} Kf7 {[%emt 0:00:00]} 32. Rf3+ {[%emt 0:01:07]} Ke6 {[%emt 0:00:30]} 1/2-1/2